Cogmind - Beta 16 --- EXPLORER MODE // 2026.01.09 @ 10:31:17 Player: K.K.Y. Result: Destroyed by WW-GSR(R) with Subdweller Machine Gun Performance ------------- Evolutions (0) 0 Regions Visited (3) 600 Robots Destroyed (45) 225 Value Destroyed (1031) 1031 Prototype IDs (14) 280 Alien Tech Used (0) 0 Bonus (-88) -88 TOTAL SCORE: 2048 Bonus ------- Friendly Fire -88 Cogmind --------- Core Integrity 0/250 Matter 270/300 Energy 100/100 System Corruption 0% Temperature Cool (0) Movement Rolling (120) Ox1 Location -10/Subcaves Parts ------- > --- POWER (1) -------- (None) > --- PROPULSION (2) --- Subdweller Monowheel > --- UTILITY (3) ------ Large Storage Unit Improved Terrain Scanner Terrain Scan Processor > --- WEAPON (2) ------- Subdweller Beam Cannon Barrage Gun > --- INVENTORY (15) --- Structural Scanner Sensor Array Core Shielding Core Shielding Light Armor Plating Light Armor Plating Particle Gun Particle Gun Particle Gun Autogun Autogun Grenade Launcher Plasma Cutter Multitool Flamer Peak State ------------ > --- POWER ------------ Light Nuclear Core > --- PROPULSION ------- Light Treads Light Treads > --- UTILITY ---------- Large Storage Unit Improved Terrain Scanner Terrain Scan Processor > --- WEAPON ----------- Autogun Autogun > --- INVENTORY -------- Structural Scanner Sensor Array Core Shielding Core Shielding Light Armor Plating Light Armor Plating Particle Gun Particle Gun Particle Gun Autogun Autogun Grenade Launcher Mining Laser Plasma Cutter [Rating: 17] Favorites ----------- Power Light Nuclear Core Engine Subdweller Power Source Power Core Light Nuclear Core Propulsion Light Treads Treads Light Treads Wheel Subdweller Monowheel Utility Large Storage Unit Device Improved Terrain Scanner Storage Large Storage Unit Processor Terrain Scan Processor Protection Core Shielding Weapon Autogun Energy Gun Small Laser Energy Cannon Subdweller Beam Cannon Ballistic Gun Autogun Launcher Grenade Launcher Special Weapon Mining Laser Build | -11 -10 -10 -10 ------- Run | Yrd Mat Min Sub Slots Evolved 1 | . 1 . . Power . | . . . . Propulsion . | . . . . Utility 1 | . 1 . . Weapon . | . . . . Parts Attached 29 | 7 11 5 6 Power 3 | 1 1 . 1 Engine 2 | 1 . . 1 Core 1 | . 1 . . Reactor . | . . . . Propulsion 6 | 2 1 . 3 Treads 3 | 2 1 . . Leg . | . . . . Wheel 3 | . . . 3 Hover . | . . . . Flight . | . . . . Utility 9 | 2 6 1 . Device 4 | 1 3 . . Storage 2 | . 2 . . Processor 1 | . . 1 . Hackware . | . . . . Protection 2 | 1 1 . . Artifact . | . . . . Weapon 11 | 2 3 4 2 Energy Gun 3 | 1 . 2 . Energy Cannon 1 | . . . 1 Ballistic Gun 5 | 1 2 1 1 Ballistic Cannon . | . . . . Launcher 1 | . . 1 . Special Weapon 1 | . 1 . . Impact Weapon . | . . . . Slashing Weapon . | . . . . Piercing Weapon . | . . . . Special Melee Weapon . | . . . . Unidentified Prototypes . | . . . . Parts Lost 4 | . . . 4 Power 1 | . . . 1 Propulsion 2 | . . . 2 Utility . | . . . . Weapon 1 | . . . 1 Highest Loss Streak 2 | . . . 2 To Critical Strikes . | . . . . Average Backups 13 | 2 9 13 14 Power . | . . . . Propulsion . | . . . . Utility 5 | 2 3 6 6 Weapon 6 | . 4 6 7 Tool/Special . | . . . . Unused Backups 9 | . 1 . 8 Power . | . . . . Propulsion . | . . . . Utility 2 | . . . 2 Weapon 5 | . 1 . 4 Tool/Special 2 | . . . 2 Average Slot Usage (%) 95 | . 99 99 83 Core 8 | . 10 12 . Treads 23 | . 25 25 18 Device 13 | . 26 13 12 Storage 11 | . 9 12 12 Processor 10 | . . 11 12 Ballistic Gun 20 | . 21 23 12 Special Weapon 2 | . . . 7 Peak Build Rating 17 | 7 14 17 17 Average Rating 15 | 5 12 16 13 On Entrance 9 | . 7 14 16 Avg Prop Armor Cover (%) . | . . . . Naked Turns . | . . . . Heaviest Build 33 | 10 33 33 32 Greatest Support 40 | 40 40 40 40 Greatest Overweight (x) 10 | . . . 10 Average Overweight (x) . | . . . . Largest Inventory Capacity 15 | 5 15 15 15 Average Capacity 14 | 5 10 15 15 Most Carried 15 | 5 13 15 15 Average Carried 13 | 2 9 13 14 Final Capacity 15 | 5 15 15 15 Final Carried 15 | 4 13 14 15 Class Distribution -------------------- 94% | Hacker-Mutant 3% | Scavenger-Mutant Dominant Class ---------------- Hacker-Mutant | -10/Materials Hacker-Mutant | -10/Mines Hacker-Mutant | -10/Subcaves Resources | -11 -10 -10 -10 ----------- Run | Yrd Mat Min Sub Matter Collected 1369 | 291 280 182 616 Remotely . | . . . . Salvage Created 1258 | 204 588 38 428 Parts 105 | 20 41 6 38 Haulers Intercepted 2 | . 2 . . Recyclers Shooed 2 | . 2 . . Parts Field Recycled . | . . . . Retrieved Matter . | . . . . Parts Self-Destructed . | . . . . Prevented . | . . . . Parts Restored . | . . . . Kills | -11 -10 -10 -10 ------- Run | Yrd Mat Min Sub Combat Hostiles Destroyed 26 | . 8 2 16 Guns 14 | . 8 2 4 Cannons 5 | . . . 5 AOE 7 | . . . 7 Classes Destroyed 13 | 3 6 . 4 Worker 3 | 2 . 1 . Builder 1 | . 1 . . Tunneler 4 | 4 . . . Hauler 2 | . 2 . . Recycler 3 | 1 2 . . Mechanic 1 | . 1 . . Turret 2 | . . . 2 Watcher 3 | . 3 . . Swarmer 10 | . 4 2 4 Grunt 4 | . 4 . . Artisan 1 | . . . 1 Subdweller 12 | . . . 12 Scientist 1 | . . . 1 Best Kill Streak 8 | 3 3 2 8 Combat Bots Only 7 | . 2 2 7 Max Kills in Single Turn 3 | 2 2 1 3 Gunslinging . | . . . . Exploded 2 | . . . 2 Melee . | . . . . Uniques/NPCs Destroyed . | . . . . Combat | -11 -10 -10 -10 -------- Run | Yrd Mat Min Sub Hostile Shots Fired 148 | . 21 2 125 Missed 45 | . 4 . 41 Hits 103 | . 17 2 84 Projectile 103 | . 17 2 84 Damage Taken 910 | . 129 16 765 Core 256 | . 3 5 248 Absorbed by Shields . | . . . . Ignored by Resistances 521 | . 82 14 425 Core Remaining (%) 100 | 100 . . . Volleys Fired 203 | 7 33 40 123 Largest 2 | 2 2 2 2 Hottest 140 | 60 140 130 123 Shots Fired 301 | 14 65 51 171 Gun 168 | 14 64 22 68 Cannon 21 | . . . 21 Launcher 33 | . . 19 14 Special 79 | . 1 10 68 Kinetic 138 | 7 47 16 68 Thermal 130 | 7 18 16 89 Explosive 33 | . . 19 14 Electromagnetic . | . . . . Robot Hit Streak 35 | 5 34 2 35 Robot Miss Streak 2 | 1 1 1 2 Penetration Max . | . . . . Secondary Targets 2 | . 2 . . Max Gunslinging Chain 1 | . 1 . . Shots Hit Robots 110 | 9 50 2 49 Core Hits 75 | 8 26 4 37 Critical Kills . | . . . . Critical Parts Destroyed . | . . . . Critical Strikes . | . . . . Melee Attacks . | . . . . Impact . | . . . . Slashing . | . . . . Piercing . | . . . . Sneak Attacks . | . . . . Combat Hostiles . | . . . . Follow-up Attacks . | . . . . Damage Inflicted 2570 | 113 726 94 1637 Guns 1337 | 113 710 30 484 Cannons 252 | . . . 252 Explosions 924 | . . 49 875 Melee . | . . . . Ramming 33 | . 16 15 2 Kinetic 1106 | 48 544 30 484 Thermal 517 | 65 166 10 276 Explosive 914 | . . 39 875 Electromagnetic . | . . . . Impact . | . . . . Slashing . | . . . . Piercing . | . . . . Highest Corruption . | . . . . Average Corruption . | . . . . Corruption Purged . | . . . . Corruption Blocked . | . . . . Overload Shots . | . . . . Overflow Damage . | . . . . Projectiles . | . . . . Explosions . | . . . . Melee . | . . . . Knockbacks 1 | . 1 . . Impact 1 | . 1 . . Kinetic . | . . . . Secondary . | . . . . Self-Inflicted Damage 26 | . . 9 17 Shots 3 | . . 2 1 Rammed 7 | . 2 4 1 Targets Rammed 9 | . 3 4 2 Kicked . | . . . . Crushed 2 | . 1 . 1 Highest Temperature 225 | . 55 225 42 Average Temperature 31 | . 15 53 13 Received Heat Transfer 363 | . 69 . 294 Siege Activations . | . . . . Martial Activations . | . . . . Shielding Activations . | . . . . Robots Disrupted . | . . . . Combat Hostiles . | . . . . Robots Corrupted . | . . . . Combat Hostiles . | . . . . Parts Fried . | . . . . Impact Corruptions . | . . . . Robots Melted . | . . . . Combat Hostiles . | . . . . Parts Melted 2 | . . . 2 Heat Transferred 958 | 150 375 50 383 Parts Sabotaged . | . . . . Parts Stolen . | . . . . Parts Stripped . | . . . . Power Chain Reactions . | . . . . Alert | -11 -10 -10 -10 ------- Run | Yrd Mat Min Sub Maximum Alert Level . | . . . . Low Security (%) 100 | 100 100 100 . Level 1 . | . . . . Level 2 . | . . . . Level 3 . | . . . . Level 4 . | . . . . Level 5 . | . . . . High Security . | . . . . Max Security . | . . . . Peak Influence 70 | 15 70 35 . Initial . | . . . . Average . | 1 6 . . Influence Increases 700 | 35 300 155 210 Destroy 0b10 Robot/C 320 | . 160 40 120 Destroy 0b10 Robot/NC 85 | 35 45 5 . Destroy Leader 60 | . 50 10 . Successful Hack 26 | . 26 . . Disable Machine 44 | . 4 40 . Destroy Structure 60 | . . 60 . Lose Combat Pursuer 105 | . 15 . 90 Influence Decreases 700 | 35 300 155 210 Time Decay 690 | 35 300 155 200 Lost Part 10 | . . . 10 Squads Dispatched . | . . . . Investigation . | . . . . Extermination . | . . . . Reinforcement . | . . . . Assault . | . . . . Garrison . | . . . . Intercept . | . . . . Searches Triggered . | . . . . Construction Impeded . | . . . . Haulers Reinforced . | . . . . Active Scanning Responses . | . . . . Cargo Convoy Interrupts . | . . . . Stealth | -11 -10 -10 -10 --------- Run | Yrd Mat Min Sub Distress Signals 3 | . 3 . . Communications Jammed . | . . . . Distress Signals . | . . . . Times Spotted 43 | . 20 2 21 Peak Tracking Total 7 | . 4 1 7 Tactical Retreats 3 | . 1 . 2 Traps | -11 -10 -10 -10 ------- Run | Yrd Mat Min Sub Traps Triggered 2 | . 2 . . Indirectly . | . . . . Trap Hack Attempts . | . . . . Triggered . | . . . . Disarmed . | . . . . Reprogrammed . | . . . . Reused . | . . . . Traps Extracted . | . . . . Installed . | . . . . Triggered . | . . . . Machines | -11 -10 -10 -10 ---------- Run | Yrd Mat Min Sub Machines Disabled 15 | . 1 10 4 Max in Single Turn 2 | . 1 1 2 Machines Repaired . | . . . . Machines Dismantled . | . . . . Machines Sabotaged . | . . . . Overloaded Fab Kills . | . . . . Hacking | -11 -10 -10 -10 --------- Run | Yrd Mat Min Sub Machines Accessed 9 | . 8 . 1 Terminals 8 | . 8 . . Fabricators . | . . . . Repair Stations . | . . . . Recycling Units . | . . . . Scanalyzers . | . . . . Garrison Access . | . . . . Total Hacks 15 | . 14 . 1 Successful 11 | . 10 . 1 Failed 4 | . 4 . . Catastrophic . | . . . . Database Lockouts . | . . . . Manual 13 | . 13 . . Terminals 14 | . 14 . . Fabricators . | . . . . Repair Stations . | . . . . Recycling Units . | . . . . Scanalyzers . | . . . . Garrison Access . | . . . . Terminal Hacks 3 | . 2 . 1 Prototype ID Bank 1 | . 1 . . Maintenance Status 1 | . 1 . . Proto ID Catalog 1 | . . . 1 Fabricator Hacks . | . . . . Repair Station Hacks . | . . . . Recycling Unit Hacks . | . . . . Scanalyzer . | . . . . Garrison Access Hacks . | . . . . Unauthorized Hacks 8 | . 8 . . Terminals 8 | . 8 . . Botnet 8 | . 8 . . Fabricators . | . . . . Repair Stations . | . . . . Recycling Units . | . . . . Scanalyzers . | . . . . Garrison Access . | . . . . Data Cores Recovered . | . . . . Used . | . . . . Hacking Detections 6 | . 6 . . Full Trace Events . | . . . . Feedback Events . | . . . . Feedback Blocked . | . . . . Robot Schematics Acquired . | . . . . Robots Built . | . . . . Authchips . | . . . . Time . | . . . . Total Robot Build Rating . | . . . . Part Schematics Acquired . | . . . . Parts Built . | . . . . Authchips . | . . . . Time . | . . . . Total Part Build Rating . | . . . . Part Studies Acquired . | . . . . Parts Repaired . | . . . . Time . | . . . . Parts Recycled . | . . . . Recycled Matter . | . . . . Retrieved Matter . | . . . . Retrieved Components . | . . . . Parts Scanalyzed . | . . . . Part Schematics Acquired . | . . . . Parts Damaged . | . . . . Bothacking | -11 -10 -10 -10 ------------ Run | Yrd Mat Min Sub Used RIF Installer . | . . . . Robots Hacked . | . . . . Non-combat . | . . . . Combat . | . . . . Robot Hacks Applied . | . . . . Relay Couplers Released . | . . . . Fabnet Peak Effective % . | . . . . Robots Rewired . | . . . . Allies Hacked . | . . . . Hacks Repelled . | . . . . Allies | -11 -10 -10 -10 -------- Run | Yrd Mat Min Sub Total Allies . | . . . . Largest Group . | . . . . Highest-Rated Group . | . . . . Highest-Rated Ally . | . . . . Total Orders . | . . . . Ally Attacks . | . . . . Total Damage . | . . . . Kills . | . . . . Allies Corrupted . | . . . . Allies Melted . | . . . . Intel | -11 -10 -10 -10 ------- Run | Yrd Mat Min Sub Active Infowar (turns) 18299 | 161 1454 12056 4628 Sensors 2315 | . 1389 926 . Terrain 16025 | . 267 11130 4628 Structural 2539 | 161 1454 924 . Robot Analysis Total . | . . . . Derelict Logs Recovered 2 | . . 2 . Drone Launches . | . . . . Drone Recoveries . | . . . . Exploration | -11 -10 -10 -10 ------------- Run | Yrd Mat Min Sub Turns Passed 18319 | 180 1454 12057 4628 Spaces Moved 4436 | 88 797 1823 1728 Core 154 | 17 . . 137 Treads 3963 | 71 797 1823 1272 Legs . | . . . . Wheels 319 | . . . 319 Hover . | . . . . Flight . | . . . . Fastest Speed 50 | 50 160 160 110 Average Speed 167 | 138 160 160 181 Slowest Speed 550 | 160 160 160 550 Overloaded Moves . | . . . . Propulsion Burnouts . | . . . . Robots Hopped . | . . . . Potential Cave-ins . | . . . . Cave-ins Triggered 1 | . . . 1 Exploration Rate (%) 64 | 6 96 100 54 Regions Visited 3 Branch Regions 2 Pre-discovered Areas 3 | . . 2 1 Known Exits Taken 3 | 1 1 1 . Unknown Exits Taken . | . . . . Scrap Searched 7 | . . . 7 Spaces Dug 3 | . . . 3 Terrain Destroyed 109 | . . 67 42 Melee . | . . . . Projectile 3 | . . . 3 AOE 106 | . . 67 39 Terrain Rammed . | . . . . Walls Destroyed . | . . . . Machines Disabled . | . . . . Actions | -11 -10 -10 -10 --------- Run | Yrd Mat Min Sub Total 14864 | 130 914 10892 2928 Wait 10140 | 22 49 9014 1055 Move 4433 | 87 796 1822 1728 Hop . | . . . . Pick Up 25 | 7 13 1 4 Fast Attach 11 | 4 2 . 5 Attach 8 | 3 2 3 . Detach 3 | . . 3 . Swap 19 | . 9 5 5 Drop 13 | . 7 . 6 Fire 203 | 7 33 40 123 Melee . | . . . . Ram . | . . . . Kick . | . . . . Crush 9 | . 3 4 2 Escape Stasis . | . . . . Rewire . | . . . . Trap . | . . . . Miscellaneous . | . . . . Route ------- -11/Scrapyard -10/Materials (discovered 6 exits: *Mat x3 / *Min x2 / *Sub) -10/Mines (discovered 4 exits: *Mat x2 / *Exi / *Sub) -10/Subcaves (discovered 3 exits: *Mat x2 / *Rec) History --------- Turn | Location | Event 7 | -11/Scrapyard | Identified exit to Materials 7 | -11/Scrapyard | Discovered exit to Materials (range 15) 181 | -11/Scrapyard | Entered Materials 181 | -10/Materials | Evolved 1 slot: Utility x1 399 | -10/Materials | Identified exit to Materials 399 | -10/Materials | Discovered exit to Materials (range 16) 626 | -10/Materials | Identified exit to Mines 626 | -10/Materials | Discovered exit to Mines (range 12) 726 | -10/Materials | Discovered exit to Materials (range 15) 796 | -10/Materials | Build established: Hacker-Mutant 819 | -10/Materials | Identified exit to Subcaves 819 | -10/Materials | Discovered exit to Subcaves (range 8) 852 | -10/Materials | Discovered exit to Mines (range 13) 1611 | -10/Materials | Discovered exit to Materials (range 3) 1635 | -10/Materials | Entered Mines 1745 | -10/Mines | YI-UF0 nonchalantly dropped a Grenade Launcher on the ground 1829 | -10/Mines | Learned location of Zion (-7) 1913 | -10/Mines | Learned Materials terminal intel 2064 | -10/Mines | Learned location of Storage (-7) 2348 | -10/Mines | Discovered exit to Materials (range 14) 2425 | -10/Mines | Deemed a non-threat by the Exiles lab entrance 2425 | -10/Mines | Identified exit to Exiles 2425 | -10/Mines | Discovered exit to Exiles (range 5) 2481 | -10/Mines | Discovered exit to Materials (range 10) 3034 | -10/Mines | Discovered exit to Subcaves (range 16) 12894 | -10/Mines | Build established: Scavenger-Mutant 13295 | -10/Mines | Build established: Hacker-Mutant 13692 | -10/Mines | Entered Subcaves 13693 | -10/Subcaves | Approached by a straggling Scientist 13712 | -10/Subcaves | Identified exit to Recycling 13712 | -10/Subcaves | Discovered exit to Recycling (range 13) 13731 | -10/Subcaves | Destroyed 7 combat bots 13886 | -10/Subcaves | Disturbed a concealed Subdweller 14071 | -10/Subcaves | A swath of the cavern ceiling suddenly collapsed 14222 | -10/Subcaves | Met a Zionite searching for "candidates" 14996 | -10/Subcaves | A swath of the cavern ceiling suddenly collapsed 16951 | -10/Subcaves | Ambushed by Subdweller buried in earth 17056 | -10/Subcaves | Crushed by falling debris 17056 | -10/Subcaves | Core integrity fell below 50% 17056 | -10/Subcaves | Core integrity fell below 20% 17447 | -10/Subcaves | Identified exit to Materials 17447 | -10/Subcaves | Discovered exit to Materials (range 13) 17454 | -10/Subcaves | Discovered exit to Materials (range 15) 17509 | -10/Subcaves | Shifting Twisted Machinery released Sub. Laser 17836 | -10/Subcaves | Visited 4L-MR0's lab 18320 | -10/Subcaves | Destroyed by WW-GSR(R) with Subdweller Machine Gun Last Messages --------------- 17862_ Subatomizers dissect the Disposable Heat Sink. 17908_ Acquired 18 matter. 18006_ VS-2J5(R) destroyed. 18008_ 58-WLM(R) destroyed. 18011_ Subatomizers dissect the Sub. Monowheel. 18016_ Acquired 12 matter. 18021_ Subatomizers dissect the Sub. Monowheel. 18080_ Sub. Monowheel shoots sparks and powers down. 18081_ Dropped Broken Sub. Monowheel. 18140_ Sub. Monowheel shoots sparks and powers down. 18141_ Dropped Broken Sub. Monowheel. 18194_ Sub. Laser melted. 18194_ Disposable Heat Sink melted. 18194_ 1D-43N(R) destroyed. 18235_ Acquired 8 matter. 18246_ Acquired Sub. Monowheel. 18319_ QH-L2E(R): "SUBHATE!" Map ----- +----------------------------------------------------+ | ?????????????????????????????????????????#?#?##### | | ???????????????????????????????????????????####### | | ???????????????????????????????????????????####### | | ??????????????????????????????????????????######## | | ????????????????????????????????????????????##?### | | ???????????????????????????????????????????? ##? | | ???????????????????????????????????????????? ? | | ???????????????????????????????????????????? ?? | | ?????????????????????????????????????????????? ? # | | ????????????????????????????????????????????????## | | ?????????????????????????? ????????????????????## | | ?????????????????????????? ?????????????????????# | | ????????????????????????## ?????????????????????? | | ???????????????????????? R ?????????????????????? | | ???????????????? ? ??#?? ?????????????????????? | | ???????????????????????? #???????? ????????????? | | ?????????????????????#?? ?? ??? ??????????????? | | ?????????????????#?????? ?????????????????????? | | ????????????????#?? ????# #????????? ???????????? | | ???????????????????????? ????#?????????????????? | | ???????????????#?#?????## ???????? ?????????????? | | ???????????????????????# ?#????#? ? ???????????? | | ???????????#???????? ### ????###? ?##?#?????? | | ?????????????????##??## ##### "## ??#??#????? | | ?????????????????#$ %# # # "" " ??#?#???? ?? | | ?????????????????## @ "" "? ?###???? ?? | | ???????????##??#?# """ ? ?##??##?## | | ??????????????#??##### ## #"###"? ##?#??###? | | ??????????????#??????# ## ##?##??" ####?? | | ?????????????????????# ## ##?#??#"? ???#### ? | | ???????????????###???# #?## ####?? ?? ? ## | | ??????????????????#??""?#?### "#####???""??? # | | ?????????????????#?? ??#?### " #### "" ## | | ??????????????????##R ????????## " ###"?"" ? ### | | ?????????????????### ? ?#?##???## """##?""## ### | | ???????????????????" ? #??#???#?# #?##?##""??## | | ???????????????#???"" ????#????## ###?###"" #?## | | ?????????????????? ???#?#???#### ##?##?## ##?? | | ?????????????????? ????#??###"" ######""###?# | | ????????????????""???#????## " ##"""""###?? | | ????????????????"?"????##?# " "#"""#"##### | | ??????????????????###??#?### ## "" "#"## # # | | ????????????????#???#?##??##"""## "" %& | | ?????????????????????#?????# ## "" """"" * | | ?????????????????????##??#?# ###""##""##" # ### | | ???????????????????????#?#######?################# | | ?????????????????????#????#???##?##???####?####?## | | ????????????????????????#???##????#??#?##???####?# | | ???????????????????????????#??#?#???##??####?#??#? | | ??????????????????????????#????#??#?##?#??##??#?#? | +----------------------------------------------------+ Best States ------------- Heat Dissipation 25 Energy Generation 15 Energy Capacity 250 Matter Stores 300 Matter Capacity 300 Sight Range 16 Robot Scan Range 14 Terrain Scan Range 16 Terrain Scan Density 85 Armor Coverage 150 Resistance: KI 35 Resistance: TH 35 Resistance: EX 35 Resistance: EM 35 Resistance: I 35 Resistance: S 35 Resistance: P 35 Core Shielding 20 Evasion (%) 50 Recoil Reduction 2 Offensive Hacking 20 Item Schematics ----------------- None Robot Schematics ------------------ None Fabricated ------------ Nothing Repaired ---------- Nothing Studied --------- None Alien Tech Used ----------------- None Achievements -------------- None Challenges ------------ None Game ------ Seed DisassembledBladeCorpse Manual? 0 Play Time 00:40:53 Cumulative 268.2 hours Start 2026.01.09 @ 09:55:50 End 2026.01.09 @ 10:31:17 Sessions 1 Manual Loads 0 Difficulty Explorer Special Mode None Game No. 418 Rogue 0 Adventurer 0 Explorer 418 Win Type - Total 0 Types 0/0/0/0/0/0/0/0/0/0 Lore% 72 Gallery% 69 Achievement% 54 Wizard Run 0 Options --------- Layout 1 ASCII 0 Keyboard 0 Movement Mouse Keybinds 1 Fullscreen 1 Font 24/Smallcaps Map View 50x35 Zoom Use 0% Tactical HUD 1 Map Filters NONE Filters NONE Steam 1 RUN: b2c4b2fb-9116-489b-8ade-15821b8589d9